[Event "*** Titled Tuesday Blitz"]
[Site "Chess.com"]
[Date "2018.07.03"]
[Round "7"]
[White "timator"]
[Black "florianschwabeneder"]
[Result "0-1"]
[WhiteElo "2346"]
[BlackElo "2471"]
[TimeControl "180+2"]
[EndTime "14:29:51 PDT"]
[Termination "florianschwabeneder won by checkmate"]

1. Nf3 {[%clk 0:02:47.3]} 1... g6 {[%clk 0:02:59.1]} 2. g3 {[%clk 0:02:49.2]}
2... Bg7 {[%clk 0:03:00.4]} 3. Bg2 {[%clk 0:02:51.1]} 3... Nf6 {[%clk
0:03:01.4]} 4. O-O {[%clk 0:02:53]} 4... O-O {[%clk 0:03:02.7]} 5. d4 {[%clk
0:02:54.9]} 5... d6 {[%clk 0:03:03.6]} 6. c4 {[%clk 0:02:56.8]} 6... Nbd7 {[%clk
0:03:02.8]} 7. Nc3 {[%clk 0:02:58.7]} 7... e5 {[%clk 0:03:03.8]} 8. e4 {[%clk
0:02:57.5]} 8... c6 {[%clk 0:03:04.6]} 9. h3 {[%clk 0:02:56.1]} 9... Qb6 {[%clk
0:03:04.4]} 10. c5 {[%clk 0:02:50.1]} 10... dxc5 {[%clk 0:02:53.7]} 11. dxe5
{[%clk 0:02:50.2]} 11... Ne8 {[%clk 0:02:51.7]} 12. e6 {[%clk 0:02:51.4]} 12...
fxe6 {[%clk 0:02:50.8]} 13. Qe2 {[%clk 0:02:23.9]} 13... h6 {[%clk 0:02:34.4]}
14. Be3 {[%clk 0:02:18.2]} 14... Qc7 {[%clk 0:02:33.5]} 15. Rad1 {[%clk
0:02:16.6]} 15... b6 {[%clk 0:02:32.8]} 16. Qd2 {[%clk 0:02:16.5]} 16... Kh7
{[%clk 0:02:31.4]} 17. Nh2 {[%clk 0:02:16.2]} 17... Ne5 {[%clk 0:02:12.7]} 18.
Qe2 {[%clk 0:02:13.3]} 18... a5 {[%clk 0:02:11.8]} 19. Rfe1 {[%clk 0:02:12.1]}
19... Ba6 {[%clk 0:02:11.7]} 20. Qc2 {[%clk 0:02:12.9]} 20... c4 {[%clk
0:02:07.2]} 21. Bf1 {[%clk 0:02:09]} 21... Nd3 {[%clk 0:02:06.2]} 22. Re2 {[%clk
0:02:08.1]} 22... Nf6 {[%clk 0:02:01.7]} 23. Red2 {[%clk 0:02:03.5]} 23... Rad8
{[%clk 0:02:01.2]} 24. b3 {[%clk 0:01:57.2]} 24... Nb4 {[%clk 0:01:57.1]} 25.
Qb1 {[%clk 0:01:56.4]} 25... Rxd2 {[%clk 0:01:56.5]} 26. Rxd2 {[%clk 0:01:52.2]}
26... Nd7 {[%clk 0:01:51.7]} 27. Qc1 {[%clk 0:01:24.6]} 27... cxb3 {[%clk
0:01:51.3]} 28. axb3 {[%clk 0:01:23.4]} 28... Bxf1 {[%clk 0:01:51.3]} 29. Nxf1
{[%clk 0:01:25.3]} 29... Ne5 {[%clk 0:01:50.1]} 30. Kg2 {[%clk 0:01:22.9]} 30...
Nf3 {[%clk 0:01:42.9]} 31. Rd1 {[%clk 0:01:19.9]} 31... c5 {[%clk 0:01:37.9]}
32. Nh2 {[%clk 0:01:13.4]} 32... Nxh2 {[%clk 0:01:38.1]} 33. Kxh2 {[%clk
0:01:15.3]} 33... Qe5 {[%clk 0:01:35.6]} 34. Rd7 {[%clk 0:01:11.7]} 34... Kg8
{[%clk 0:01:22.4]} 35. Bxh6 {[%clk 0:01:02.8]} 35... Rxf2+ {[%clk 0:01:18.5]}
36. Kh1 {[%clk 0:01:03.7]} 36... Qxg3 {[%clk 0:01:13.1]} 37. Rxg7+ {[%clk
0:00:58.7]} 37... Kh8 {[%clk 0:01:13.7]} 38. Qg5 {[%clk 0:00:44.2]} 38... Qh2#
{[%clk 0:01:13.5]} 0-1

[Event "*** Titled Tuesday Blitz"]
[Site "Chess.com"]
[Date "2018.07.03"]
[Round "7"]
[White "andrzej"]
[Black "Polish_fighter3000"]
[Result "0-1"]
[WhiteElo "2212"]
[BlackElo "2747"]
[TimeControl "180+2"]
[EndTime "14:29:57 PDT"]
[Termination "Polish_fighter3000 won on time"]

1. e4 {[%clk 0:03:01.9]} 1... c5 {[%clk 0:02:59.2]} 2. Nf3 {[%clk 0:03:02.5]}
2... d6 {[%clk 0:03:00.6]} 3. d4 {[%clk 0:03:03.2]} 3... cxd4 {[%clk 0:03:02.5]}
4. Nxd4 {[%clk 0:03:05.1]} 4... Nf6 {[%clk 0:03:03.9]} 5. Nc3 {[%clk 0:03:06.6]}
5... a6 {[%clk 0:03:03.6]} 6. g3 {[%clk 0:03:04.7]} 6... e5 {[%clk 0:03:02.4]}
7. Nb3 {[%clk 0:03:05.8]} 7... b5 {[%clk 0:03:00]} 8. Bg2 {[%clk 0:02:57.9]}
8... Bb7 {[%clk 0:02:59.9]} 9. O-O {[%clk 0:02:48.1]} 9... Nbd7 {[%clk
0:03:00.1]} 10. a4 {[%clk 0:02:43.8]} 10... b4 {[%clk 0:03:00.7]} 11. Nd5 {[%clk
0:02:44.3]} 11... a5 {[%clk 0:02:52.2]} 12. Bg5 {[%clk 0:02:38.5]} 12... Be7
{[%clk 0:02:47.4]} 13. Bxf6 {[%clk 0:02:39.1]} 13... Nxf6 {[%clk 0:02:44.6]} 14.
c4 {[%clk 0:02:26.9]} 14... bxc3 {[%clk 0:02:33.9]} 15. Nxc3 {[%clk 0:02:27.2]}
15... O-O {[%clk 0:02:35]} 16. Re1 {[%clk 0:02:21.2]} 16... Qb6 {[%clk
0:02:30.7]} 17. Nb5 {[%clk 0:02:11.8]} 17... Bc6 {[%clk 0:02:21.8]} 18. Qe2
{[%clk 0:02:05.1]} 18... Rfb8 {[%clk 0:02:11.7]} 19. Rec1 {[%clk 0:01:40.4]}
19... Bf8 {[%clk 0:02:12.8]} 20. Nd2 {[%clk 0:01:06.2]} 20... Bxb5 {[%clk
0:02:12.4]} 21. axb5 {[%clk 0:01:04.4]} 21... Qxb5 {[%clk 0:02:14.3]} 22. Nc4
{[%clk 0:00:45.2]} 22... a4 {[%clk 0:02:14.4]} 23. Bf1 {[%clk 0:00:45.4]} 23...
Qb7 {[%clk 0:02:08.9]} 24. Bg2 {[%clk 0:00:37.9]} 24... h5 {[%clk 0:02:07.1]}
25. Qc2 {[%clk 0:00:31.3]} 25... Qb4 {[%clk 0:02:07.2]} 26. Ne3 {[%clk 0:00:31]}
26... Qxb2 {[%clk 0:02:05.2]} 27. Qc6 {[%clk 0:00:18.6]} 27... a3 {[%clk
0:02:01.8]} 28. Nf5 {[%clk 0:00:09.2]} 28... a2 {[%clk 0:01:58.4]} 29. Nxd6
{[%clk 0:00:09.5]} 29... Bxd6 {[%clk 0:01:52.5]} 30. Qxd6 {[%clk 0:00:10.3]}
30... Qxc1+ {[%clk 0:01:49.9]} 31. Rxc1 {[%clk 0:00:08.7]} 31... Rb1 {[%clk
0:01:50.3]} 32. Qd1 {[%clk 0:00:03.1]} 32... Rxc1 {[%clk 0:01:50.6]} 33. Qxc1
{[%clk 0:00:03.7]} 33... a1=Q {[%clk 0:01:52.5]} 0-1

[Event "*** Titled Tuesday Blitz"]
[Site "Chess.com"]
[Date "2018.07.03"]
[Round "7"]
[White "djamir"]
[Black "ChainsOfFantasia"]
[Result "0-1"]
[WhiteElo "2592"]
[BlackElo "2412"]
[TimeControl "180+2"]
[EndTime "14:29:59 PDT"]
[Termination "ChainsOfFantasia won on time"]

1. d4 {[%clk 0:03:01]} 1... Nf6 {[%clk 0:03:00]} 2. Bg5 {[%clk 0:03:00.5]} 2...
e6 {[%clk 0:02:59.8]} 3. e3 {[%clk 0:02:54.9]} 3... h6 {[%clk 0:02:57.8]} 4. Bh4
{[%clk 0:02:55.5]} 4... b6 {[%clk 0:02:59.1]} 5. Bd3 {[%clk 0:02:44.1]} 5... Bb7
{[%clk 0:02:56.5]} 6. Nf3 {[%clk 0:02:44.2]} 6... Be7 {[%clk 0:02:56.6]} 7. O-O
{[%clk 0:02:36.5]} 7... g5 {[%clk 0:02:56.6]} 8. Bg3 {[%clk 0:02:37]} 8... g4
{[%clk 0:02:56.7]} 9. Nfd2 {[%clk 0:02:31.9]} 9... h5 {[%clk 0:02:54.6]} 10. Bh4
{[%clk 0:02:29.8]} 10... Nd5 {[%clk 0:02:45.7]} 11. Bxe7 {[%clk 0:02:29.7]}
11... Qxe7 {[%clk 0:02:47.6]} 12. a3 {[%clk 0:01:50.5]} 12... f5 {[%clk
0:02:34.8]} 13. Re1 {[%clk 0:01:50.4]} 13... Nc6 {[%clk 0:02:32.6]} 14. c4
{[%clk 0:01:45.6]} 14... Nf6 {[%clk 0:02:32.9]} 15. b4 {[%clk 0:01:35.3]} 15...
h4 {[%clk 0:02:27.3]} 16. b5 {[%clk 0:01:30]} 16... Na5 {[%clk 0:02:25]} 17. e4
{[%clk 0:01:26.8]} 17... fxe4 {[%clk 0:02:10.5]} 18. Nxe4 {[%clk 0:01:24.5]}
18... Nxe4 {[%clk 0:02:07.2]} 19. Bxe4 {[%clk 0:01:24.8]} 19... Bxe4 {[%clk
0:02:08.3]} 20. Rxe4 {[%clk 0:01:26.4]} 20... g3 {[%clk 0:02:04.8]} 21. Nd2
{[%clk 0:01:11.6]} 21... gxf2+ {[%clk 0:01:59.1]} 22. Kxf2 {[%clk 0:01:01.4]}
22... O-O-O {[%clk 0:01:52.9]} 23. Rg4 {[%clk 0:00:48.1]} 23... h3 {[%clk
0:01:44.8]} 24. g3 {[%clk 0:00:43.5]} 24... Rdf8+ {[%clk 0:01:34.1]} 25. Kg1
{[%clk 0:00:43.7]} 25... e5 {[%clk 0:01:26.9]} 26. Qe2 {[%clk 0:00:40.7]} 26...
Rh5 {[%clk 0:01:13.7]} 0-1

[Event "*** Titled Tuesday Blitz"]
[Site "Chess.com"]
[Date "2018.07.03"]
[Round "7"]
[White "Ravan_02"]
[Black "Hrant_ChessMood"]
[Result "0-1"]
[WhiteElo "2473"]
[BlackElo "2899"]
[TimeControl "180+2"]
[EndTime "14:30:08 PDT"]
[Termination "Hrant_ChessMood won by resignation"]

1. d4 {[%clk 0:03:01.9]} 1... Nf6 {[%clk 0:03:00.7]} 2. c4 {[%clk 0:03:02.1]}
2... g6 {[%clk 0:03:00.5]} 3. Nc3 {[%clk 0:03:00]} 3... Bg7 {[%clk 0:02:58.5]}
4. Nf3 {[%clk 0:03:01.3]} 4... O-O {[%clk 0:02:58.2]} 5. Bf4 {[%clk 0:03:02.5]}
5... d6 {[%clk 0:02:58.6]} 6. e3 {[%clk 0:03:02.5]} 6... Nc6 {[%clk 0:02:59.1]}
7. h3 {[%clk 0:03:02.4]} 7... Bf5 {[%clk 0:02:54.5]} 8. Be2 {[%clk 0:03:00.1]}
8... Ne4 {[%clk 0:02:55.4]} 9. O-O {[%clk 0:02:42.3]} 9... e5 {[%clk 0:02:56.1]}
10. Bh2 {[%clk 0:02:39.7]} 10... exd4 {[%clk 0:02:57.1]} 11. exd4 {[%clk
0:02:39.7]} 11... Re8 {[%clk 0:02:57.9]} 12. Nd5 {[%clk 0:02:35.6]} 12... Nf6
{[%clk 0:02:57.8]} 13. Ne3 {[%clk 0:02:31.3]} 13... Bd7 {[%clk 0:02:49.1]} 14.
c5 {[%clk 0:02:28.1]} 14... dxc5 {[%clk 0:02:42.8]} 15. dxc5 {[%clk 0:02:26.8]}
15... Ne4 {[%clk 0:02:43.8]} 16. Qc2 {[%clk 0:02:15.4]} 16... Nd4 {[%clk
0:02:21.1]} 17. Nxd4 {[%clk 0:02:12.7]} 17... Bxd4 {[%clk 0:02:23]} 18. Bf3
{[%clk 0:01:44]} 18... Nxf2 {[%clk 0:02:15.2]} 19. Nd5 {[%clk 0:00:53.5]} 19...
Ng4+ {[%clk 0:02:05.4]} 20. Kh1 {[%clk 0:00:50.1]} 20... Nxh2 {[%clk 0:02:06.5]}
21. Kxh2 {[%clk 0:00:51.9]} 21... c6 {[%clk 0:02:03.1]} 22. Nb4 {[%clk
0:00:30.6]} 22... Qg5 {[%clk 0:02:03.3]} 23. Kh1 {[%clk 0:00:29.5]} 23... Bxc5
{[%clk 0:01:56.4]} 24. Nd3 {[%clk 0:00:27.9]} 24... Bd6 {[%clk 0:01:57.3]} 25.
g4 {[%clk 0:00:20.6]} 25... Re3 {[%clk 0:01:55.9]} 26. Rad1 {[%clk 0:00:15.6]}
26... Qh4 {[%clk 0:01:52.1]} 27. Qg2 {[%clk 0:00:12.6]} 27... Be6 {[%clk
0:01:39.5]} 28. Nf2 {[%clk 0:00:12.9]} 28... Be7 {[%clk 0:01:36.8]} 29. Ne4
{[%clk 0:00:11.6]} 29... Bxa2 {[%clk 0:01:34.5]} 30. Rd7 {[%clk 0:00:05.7]}
30... Bd5 {[%clk 0:01:31.8]} 31. Rxb7 {[%clk 0:00:05]} 31... Re8 {[%clk
0:01:29.2]} 32. g5 {[%clk 0:00:04.8]} 32... Bxe4 {[%clk 0:01:28.8]} 33. Bxe4
{[%clk 0:00:04.5]} 33... Rxh3+ {[%clk 0:01:29.6]} 34. Kg1 {[%clk 0:00:04.2]}
34... Bc5+ {[%clk 0:01:31]} 0-1

[Event "*** Titled Tuesday Blitz"]
[Site "Chess.com"]
[Date "2018.07.03"]
[Round "7"]
[White "morphy1984"]
[Black "Quiet_Desperation"]
[Result "1-0"]
[WhiteElo "2492"]
[BlackElo "1869"]
[TimeControl "180+2"]
[EndTime "14:30:19 PDT"]
[Termination "morphy1984 won by resignation"]

1. e4 {[%clk 0:03:01.9]} 1... Nc6 {[%clk 0:03:00.2]} 2. Nf3 {[%clk 0:03:02]}
2... d6 {[%clk 0:03:00.7]} 3. d4 {[%clk 0:03:01.8]} 3... Nf6 {[%clk 0:03:02.1]}
4. Nc3 {[%clk 0:03:01.9]} 4... d5 {[%clk 0:03:01.3]} 5. exd5 {[%clk 0:02:54.7]}
5... Nxd5 {[%clk 0:03:02.4]} 6. Bc4 {[%clk 0:02:52.9]} 6... e6 {[%clk
0:02:57.6]} 7. O-O {[%clk 0:02:51.3]} 7... Be7 {[%clk 0:02:58.2]} 8. Re1 {[%clk
0:02:43.2]} 8... O-O {[%clk 0:02:58.4]} 9. Ne4 {[%clk 0:02:43.8]} 9... Nb6
{[%clk 0:02:57.2]} 10. Bb3 {[%clk 0:02:39.9]} 10... Na5 {[%clk 0:02:55.4]} 11.
c3 {[%clk 0:02:37.2]} 11... Nxb3 {[%clk 0:02:56.6]} 12. axb3 {[%clk 0:02:37.9]}
12... Nd7 {[%clk 0:02:55.4]} 13. Qd3 {[%clk 0:02:26.5]} 13... b6 {[%clk
0:02:39]} 14. Nfg5 {[%clk 0:02:25.5]} 14... h6 {[%clk 0:02:28]} 15. Nf3 {[%clk
0:01:56.3]} 15... Bb7 {[%clk 0:02:28.7]} 16. Bf4 {[%clk 0:01:55.2]} 16... a5
{[%clk 0:01:50.4]} 17. Rad1 {[%clk 0:01:52.7]} 17... Nf6 {[%clk 0:01:47.6]} 18.
Ng3 {[%clk 0:01:46.7]} 18... Nd5 {[%clk 0:01:41.5]} 19. Bc1 {[%clk 0:01:45.2]}
19... Bd6 {[%clk 0:01:26.9]} 20. Ne5 {[%clk 0:01:45.4]} 20... Bxe5 {[%clk
0:01:27.7]} 21. Rxe5 {[%clk 0:01:43.1]} 21... Nf6 {[%clk 0:01:22.7]} 22. Rde1
{[%clk 0:01:28.3]} 22... Nd7 {[%clk 0:01:19.8]} 23. Rh5 {[%clk 0:01:20.5]} 23...
Qf6 {[%clk 0:01:06.9]} 24. f3 {[%clk 0:01:05.2]} 24... Qg6 {[%clk 0:00:40.1]}
25. Qe2 {[%clk 0:00:49.8]} 25... Rfe8 {[%clk 0:00:35.5]} 26. Rh4 {[%clk
0:00:41.8]} 26... Nf6 {[%clk 0:00:29.4]} 27. Ne4 {[%clk 0:00:34.7]} 27... Qf5
{[%clk 0:00:18.4]} 28. Rf4 {[%clk 0:00:33.8]} 1-0

[Event "*** Titled Tuesday Blitz"]
[Site "Chess.com"]
[Date "2018.07.03"]
[Round "7"]
[White "albi1999"]
[Black "Durarbayli"]
[Result "1-0"]
[WhiteElo "2521"]
[BlackElo "2648"]
[TimeControl "180+2"]
[EndTime "14:30:21 PDT"]
[Termination "albi1999 won by resignation"]

1. d4 {[%clk 0:03:01.9]} 1... Nf6 {[%clk 0:02:57.3]} 2. c4 {[%clk 0:03:02.4]}
2... e6 {[%clk 0:02:58.8]} 3. g3 {[%clk 0:03:01.5]} 3... c5 {[%clk 0:02:59.2]}
4. Nf3 {[%clk 0:03:02.4]} 4... cxd4 {[%clk 0:02:58.8]} 5. Nxd4 {[%clk
0:03:04.3]} 5... d5 {[%clk 0:03:00.3]} 6. Bg2 {[%clk 0:03:05.6]} 6... e5 {[%clk
0:03:01]} 7. Nf3 {[%clk 0:03:05.1]} 7... d4 {[%clk 0:03:02.5]} 8. O-O {[%clk
0:03:06.2]} 8... Nc6 {[%clk 0:03:03.7]} 9. e3 {[%clk 0:03:07.2]} 9... Bc5 {[%clk
0:03:04.8]} 10. exd4 {[%clk 0:03:07.2]} 10... exd4 {[%clk 0:03:06.3]} 11. Re1+
{[%clk 0:03:08.7]} 11... Be6 {[%clk 0:03:06.3]} 12. Ng5 {[%clk 0:03:08.9]} 12...
O-O {[%clk 0:02:35.9]} 13. Nxe6 {[%clk 0:03:09.9]} 13... fxe6 {[%clk 0:02:36.2]}
14. Nd2 {[%clk 0:03:11.4]} 14... e5 {[%clk 0:02:12.6]} 15. Ne4 {[%clk
0:03:08.7]} 15... Nxe4 {[%clk 0:02:10.6]} 16. Bxe4 {[%clk 0:03:10.6]} 16... Qf6
{[%clk 0:02:01.9]} 17. Rf1 {[%clk 0:03:10.9]} 17... Rad8 {[%clk 0:02:01.4]} 18.
a3 {[%clk 0:03:10.1]} 18... d3 {[%clk 0:02:00.4]} 19. Be3 {[%clk 0:03:07.1]}
19... Bxe3 {[%clk 0:01:51.7]} 20. fxe3 {[%clk 0:03:09]} 20... Qg5 {[%clk
0:01:47.1]} 21. Rxf8+ {[%clk 0:02:27.2]} 21... Kxf8 {[%clk 0:01:47.7]} 22. Qf3+
{[%clk 0:02:26.1]} 22... Ke7 {[%clk 0:01:44.5]} 23. Rf1 {[%clk 0:02:10.7]} 23...
d2 {[%clk 0:01:40]} 24. Bd5 {[%clk 0:01:56.3]} 24... Kd6 {[%clk 0:01:31.6]} 25.
Qe2 {[%clk 0:01:37.8]} 25... Kc7 {[%clk 0:01:19.5]} 26. Qxd2 {[%clk 0:01:35.7]}
26... Rd7 {[%clk 0:01:13.3]} 27. Qc3 {[%clk 0:01:35.2]} 27... b6 {[%clk
0:01:07.7]} 28. b4 {[%clk 0:01:31.9]} 28... Ne7 {[%clk 0:01:02]} 29. Be4 {[%clk
0:01:26.1]} 29... Qh5 {[%clk 0:00:59.5]} 30. c5 {[%clk 0:01:23.7]} 30... b5
{[%clk 0:01:00.6]} 31. Bf3 {[%clk 0:01:16]} 31... Qf5 {[%clk 0:00:56.9]} 32. c6
{[%clk 0:01:17.1]} 32... Rd6 {[%clk 0:00:44.7]} 33. Qc5 {[%clk 0:01:14.5]} 33...
Nc8 {[%clk 0:00:39.5]} 34. Qxb5 {[%clk 0:01:09.7]} 34... Nb6 {[%clk 0:00:33.6]}
35. Qa6 {[%clk 0:01:09.5]} 35... e4 {[%clk 0:00:33.1]} 36. Qxa7+ {[%clk
0:00:59.4]} 36... Kxc6 {[%clk 0:00:34.3]} 37. Rc1+ {[%clk 0:00:59.8]} 37... Kd5
{[%clk 0:00:35.5]} 38. Rc5+ {[%clk 0:00:59.3]} 1-0

[Event "*** Titled Tuesday Blitz"]
[Site "Chess.com"]
[Date "2018.07.03"]
[Round "7"]
[White "racquetball1"]
[Black "tgpgoat"]
[Result "1-0"]
[WhiteElo "2041"]
[BlackElo "1962"]
[TimeControl "180+2"]
[EndTime "14:30:29 PDT"]
[Termination "racquetball1 won by checkmate"]

1. e4 {[%clk 0:03:01.9]} 1... c5 {[%clk 0:02:53.9]} 2. Nc3 {[%clk 0:03:02.6]}
2... Nc6 {[%clk 0:02:54.1]} 3. f4 {[%clk 0:03:03.6]} 3... g6 {[%clk 0:02:54.4]}
4. Nf3 {[%clk 0:03:04.7]} 4... Bg7 {[%clk 0:02:55.4]} 5. Bc4 {[%clk 0:03:05.4]}
5... e6 {[%clk 0:02:56.1]} 6. O-O {[%clk 0:03:05.4]} 6... Nge7 {[%clk
0:02:56.8]} 7. d3 {[%clk 0:03:06.1]} 7... a6 {[%clk 0:02:57.5]} 8. Bb3 {[%clk
0:03:07]} 8... O-O {[%clk 0:02:58.2]} 9. e5 {[%clk 0:02:53.9]} 9... d5 {[%clk
0:02:56.1]} 10. exd6 {[%clk 0:02:54.1]} 10... Qxd6 {[%clk 0:02:56.7]} 11. Ne4
{[%clk 0:02:51.6]} 11... Qd8 {[%clk 0:02:57.6]} 12. Qe1 {[%clk 0:02:23.8]} 12...
b6 {[%clk 0:02:39.8]} 13. Kh1 {[%clk 0:02:11.9]} 13... Bb7 {[%clk 0:02:40]} 14.
Qf2 {[%clk 0:02:02]} 14... Nd4 {[%clk 0:02:39.5]} 15. Be3 {[%clk 0:01:55.7]}
15... Nec6 {[%clk 0:02:38.3]} 16. c3 {[%clk 0:01:28.7]} 16... Nxb3 {[%clk
0:02:37.7]} 17. axb3 {[%clk 0:01:29.5]} 17... Qxd3 {[%clk 0:02:36.7]} 18. Nfg5
{[%clk 0:01:20.2]} 18... h6 {[%clk 0:02:29.5]} 19. Rad1 {[%clk 0:01:18]} 19...
Qb5 {[%clk 0:02:28.3]} 20. Nd6 {[%clk 0:01:18.4]} 20... Qxb3 {[%clk 0:02:28.1]}
21. Nxb7 {[%clk 0:01:08.3]} 21... hxg5 {[%clk 0:02:26.5]} 22. fxg5 {[%clk
0:01:08]} 22... Ne5 {[%clk 0:02:24.2]} 23. Nd6 {[%clk 0:01:01.2]} 23... Ng4
{[%clk 0:02:22.9]} 24. Qe2 {[%clk 0:01:00.1]} 24... Nxe3 {[%clk 0:02:23.1]} 25.
Qxe3 {[%clk 0:01:01.9]} 25... Qxb2 {[%clk 0:02:23.4]} 26. Nxf7 {[%clk
0:00:55.8]} 26... Rxf7 {[%clk 0:01:42.1]} 27. Qxe6 {[%clk 0:00:56.1]} 27... Rf8
{[%clk 0:01:41.3]} 28. Rd7 {[%clk 0:00:55.9]} 28... Kh7 {[%clk 0:01:36]} 29.
Rdxf7 {[%clk 0:00:55.5]} 29... Rxf7 {[%clk 0:01:35.3]} 30. Qxf7 {[%clk
0:00:56.8]} 30... Qxc3 {[%clk 0:01:35.1]} 31. h3 {[%clk 0:00:38.2]} 31... Qg3
{[%clk 0:01:27.4]} 32. Qe7 {[%clk 0:00:27.8]} 32... c4 {[%clk 0:01:12.3]} 33.
Rf7 {[%clk 0:00:22.6]} 33... Qc3 {[%clk 0:01:12.9]} 34. Rf4 {[%clk 0:00:19.8]}
34... Qa1+ {[%clk 0:01:11.9]} 35. Kh2 {[%clk 0:00:16]} 35... Qe5 {[%clk
0:01:11.3]} 36. Qf7 {[%clk 0:00:15.8]} 36... c3 {[%clk 0:01:11.2]} 37. Kh1
{[%clk 0:00:12.7]} 37... c2 {[%clk 0:01:10.9]} 38. Rh4# {[%clk 0:00:12.9]} 1-0

[Event "*** Titled Tuesday Blitz"]
[Site "Chess.com"]
[Date "2018.07.03"]
[Round "7"]
[White "Sordis"]
[Black "MikeSailer"]
[Result "1-0"]
[WhiteElo "2275"]
[BlackElo "2046"]
[TimeControl "180+2"]
[EndTime "14:30:33 PDT"]
[Termination "Sordis won on time"]

1. c4 {[%clk 0:03:01.9]} 1... Nf6 {[%clk 0:02:51]} 2. g3 {[%clk 0:03:02.7]} 2...
g6 {[%clk 0:02:46.3]} 3. Bg2 {[%clk 0:03:03.2]} 3... Bg7 {[%clk 0:02:47.8]} 4.
Nc3 {[%clk 0:03:03.1]} 4... c5 {[%clk 0:02:47.1]} 5. a3 {[%clk 0:03:03.6]} 5...
Nc6 {[%clk 0:02:47.2]} 6. Rb1 {[%clk 0:03:04.3]} 6... a5 {[%clk 0:02:44.4]} 7.
d3 {[%clk 0:03:00.4]} 7... O-O {[%clk 0:02:43.2]} 8. Nf3 {[%clk 0:02:59.6]} 8...
d5 {[%clk 0:02:29.8]} 9. cxd5 {[%clk 0:02:59.4]} 9... Nxd5 {[%clk 0:02:30.6]}
10. Bd2 {[%clk 0:03:00.1]} 10... Nxc3 {[%clk 0:02:12]} 11. Bxc3 {[%clk 0:03:02]}
11... Nd4 {[%clk 0:02:08.1]} 12. O-O {[%clk 0:02:59.7]} 12... Rb8 {[%clk
0:01:53.9]} 13. e3 {[%clk 0:02:48]} 13... Nxf3+ {[%clk 0:01:49.1]} 14. Bxf3
{[%clk 0:02:49.9]} 14... b5 {[%clk 0:01:45.1]} 15. Qd2 {[%clk 0:02:33.9]} 15...
b4 {[%clk 0:01:42.3]} 16. Bxg7 {[%clk 0:02:33.4]} 16... Kxg7 {[%clk 0:01:42.5]}
17. Rbc1 {[%clk 0:02:34.4]} 17... Qd6 {[%clk 0:01:14.9]} 18. axb4 {[%clk
0:02:24.8]} 18... cxb4 {[%clk 0:01:09.2]} 19. Rc6 {[%clk 0:02:02.5]} 19... Qe5
{[%clk 0:00:57]} 20. d4 {[%clk 0:02:00.6]} 20... Qb5 {[%clk 0:00:47.5]} 21. Rc5
{[%clk 0:01:58.3]} 21... Qa4 {[%clk 0:00:31.6]} 22. Rc7 {[%clk 0:01:49.6]} 22...
Ba6 {[%clk 0:00:17.6]} 23. Rfc1 {[%clk 0:01:44.2]} 23... e6 {[%clk 0:00:17.1]}
24. d5 {[%clk 0:01:35.5]} 24... Rbd8 {[%clk 0:00:11.2]} 25. Qd4+ {[%clk
0:01:32.9]} 25... Kg8 {[%clk 0:00:10.5]} 26. Qb6 {[%clk 0:01:22.2]} 26... Qb5
{[%clk 0:00:04.5]} 27. Qxb5 {[%clk 0:01:15.8]} 27... Bxb5 {[%clk 0:00:05.4]} 28.
R7c5 {[%clk 0:01:07.5]} 28... Rb8 {[%clk 0:00:02.2]} 29. dxe6 {[%clk 0:01:01.8]}
29... fxe6 {[%clk 0:00:03.3]} 30. Bg4 {[%clk 0:01:02.8]} 30... e5 {[%clk
0:00:03.3]} 31. Rc7 {[%clk 0:00:57.2]} 31... Ba4 {[%clk 0:00:03.4]} 32. Be6+
{[%clk 0:00:53.4]} 32... Kh8 {[%clk 0:00:04.9]} 33. Ra7 {[%clk 0:00:53.4]} 1-0

[Event "*** Titled Tuesday Blitz"]
[Site "Chess.com"]
[Date "2018.07.03"]
[Round "7"]
[White "jk13"]
[Black "GameOverBro"]
[Result "1-0"]
[WhiteElo "2563"]
[BlackElo "2439"]
[TimeControl "180+2"]
[EndTime "14:30:34 PDT"]
[Termination "jk13 won by resignation"]

1. Nf3 {[%clk 0:03:01.9]} 1... d6 {[%clk 0:02:57.2]} 2. g3 {[%clk 0:03:03.8]}
2... Nf6 {[%clk 0:02:56]} 3. Bg2 {[%clk 0:03:05.1]} 3... e5 {[%clk 0:02:55.3]}
4. O-O {[%clk 0:03:06.6]} 4... Be7 {[%clk 0:02:56]} 5. d3 {[%clk 0:03:07.7]}
5... O-O {[%clk 0:02:57.2]} 6. e4 {[%clk 0:03:07.8]} 6... c6 {[%clk 0:02:50]} 7.
Nbd2 {[%clk 0:03:08.7]} 7... Nbd7 {[%clk 0:02:49.7]} 8. Nc4 {[%clk 0:03:09.7]}
8... b5 {[%clk 0:02:49.9]} 9. Ne3 {[%clk 0:03:10.9]} 9... Re8 {[%clk 0:02:51.1]}
10. a4 {[%clk 0:03:11.6]} 10... b4 {[%clk 0:02:44.4]} 11. a5 {[%clk 0:03:11.1]}
11... a6 {[%clk 0:02:42.9]} 12. Re1 {[%clk 0:03:10.4]} 12... Bb7 {[%clk
0:02:43.2]} 13. Nc4 {[%clk 0:03:07.9]} 13... Qc7 {[%clk 0:02:43.5]} 14. Bd2
{[%clk 0:03:06.2]} 14... c5 {[%clk 0:02:30.6]} 15. c3 {[%clk 0:02:48.2]} 15...
bxc3 {[%clk 0:02:25.4]} 16. bxc3 {[%clk 0:02:50.1]} 16... Bf8 {[%clk 0:02:19.9]}
17. Qc2 {[%clk 0:02:45.4]} 17... Bc6 {[%clk 0:02:19.6]} 18. Reb1 {[%clk
0:02:40.3]} 18... Rab8 {[%clk 0:02:20.5]} 19. Ne3 {[%clk 0:02:35.9]} 19... g6
{[%clk 0:02:17.8]} 20. Be1 {[%clk 0:02:34.9]} 20... Rxb1 {[%clk 0:02:15]} 21.
Qxb1 {[%clk 0:02:34.6]} 21... Rb8 {[%clk 0:02:16.4]} 22. Qa2 {[%clk 0:02:31.7]}
22... Bh6 {[%clk 0:02:11.8]} 23. Nc4 {[%clk 0:02:21.8]} 23... Nf8 {[%clk
0:02:02.9]} 24. Bd2 {[%clk 0:02:09.8]} 24... Bxd2 {[%clk 0:02:01.3]} 25. Nfxd2
{[%clk 0:02:10.2]} 25... Ne6 {[%clk 0:01:56.6]} 26. h4 {[%clk 0:02:04.9]} 26...
h5 {[%clk 0:01:55.8]} 27. Bh3 {[%clk 0:02:05.8]} 27... Ng4 {[%clk 0:01:47.6]}
28. Nb6 {[%clk 0:02:02.2]} 28... Kg7 {[%clk 0:01:34]} 29. Nf1 {[%clk 0:02:01.2]}
29... Qe7 {[%clk 0:01:05.5]} 30. Bxg4 {[%clk 0:02:01.6]} 30... hxg4 {[%clk
0:01:04.9]} 31. Ne3 {[%clk 0:02:03.2]} 31... Nf4 {[%clk 0:00:54.9]} 32. Qd2
{[%clk 0:01:40]} 32... f5 {[%clk 0:00:48.7]} 33. Ned5 {[%clk 0:01:04.3]} 33...
Bxd5 {[%clk 0:00:45.9]} 34. exd5 {[%clk 0:01:06.2]} 34... Rh8 {[%clk 0:00:27]}
35. Re1 {[%clk 0:01:05.7]} 35... Nh3+ {[%clk 0:00:22.8]} 36. Kg2 {[%clk
0:01:04.4]} 36... Rxh4 {[%clk 0:00:22.3]} 37. gxh4 {[%clk 0:00:57.1]} 37... Nf4+
{[%clk 0:00:22]} 38. Qxf4 {[%clk 0:00:57.2]} 1-0